bitfinex/quotes_SOLUSD_20240717
["timestamp","ask_amount","ask_price","bid_price","bid_amount"]
[1721229821748,6.2482,160.05,160.0,66.8742]
[1721229822064,15.6177,160.08,160.0,60.6244]
[1721229822065,6.2477,160.06,160.0,60.6244]
[1721229822471,6.2477,160.06,160.02,6.2492]
[1721229822866,6.248,160.05,160.01,6.2495]
[1721229823351,15.6172,160.08,160.0,45.0]
[1721229823551,0.17,160.07,160.0,45.0]
[1721229823762,0.34,160.07,160.0,45.0]
[1721229823963,6.2487,160.04,160.0,45.0]
[1721229824165,6.2488,160.03,160.0,45.0]
[1721229824652,0.34,160.07,160.0,45.0]
[1721229824856,6.2484,160.04,160.01,1.24972461]
[1721229825061,6.2484,160.04,160.0,51.2499]
[1721229825367,6.2488,160.03,160.0,45.0]
[1721229826476,46.2369,160.09,159.98,6.2506]
[1721229826477,6.2492,160.02,159.98,6.2506]
[1721229827261,6.2486,160.04,160.0,6.2499]
[1721229827574,6.2488,160.03,159.99,6.2503]
[1721229827778,6.2485,160.04,160.0,6.2499]
[1721229827975,6.2485,160.04,160.0,1.24976652]
[1721229828197,6.2488,160.03,160.0,45.0]
[1721229828879,6.2488,160.03,159.99,6.2502]
[1721229829357,6.2494,160.02,159.98,15.626]
[1721229830187,6.2494,160.02,159.98,21.8765]
[1721229830487,6.2489,160.03,159.99,6.2502]
[1721229833780,6.2489,160.03,159.99,6.2501]
[1721229833964,16.2769,160.09,160.02,6.2489]
[1721229834164,6.2471,160.08,160.03,6.2485]
[1721229834474,6.2472,160.07,160.03,6.2485]
[1721229834671,6.2476,160.06,160.02,6.2491]
[1721229835192,6.2474,160.07,160.02,6.2491]
[1721229835384,6.2474,160.07,160.03,6.2487]
[1721229835774,6.2476,160.06,160.02,6.2491]
[1721229836272,6.2481,160.05,160.01,21.8732]
[1721229836477,6.2478,160.06,160.02,45.0]
[1721229836875,6.248,160.05,160.02,45.0]
[1721229837303,6.2481,160.05,160.02,45.0]
[1721229837794,6.2477,160.06,160.02,51.2491]
[1721229837979,6.2474,160.07,160.03,6.2487]
[1721229838295,6.2477,160.06,160.02,45.0]
[1721229839398,6.2477,160.06,160.02,51.2491]
[1721229839604,6.2473,160.07,160.03,6.2487]
[1721229840695,6.2476,160.06,160.02,51.2491]
[1721229841691,6.5844,160.1,160.02,45.0]
[1721229841902,6.2461,160.1,160.06,6.2476]
[1721229842404,6.2458,160.11,160.07,1.24927232]
[1721229842589,6.2458,160.11,160.08,1.24919025]
[1721229842903,45.57,160.16,160.08,7.49589025]
[1721229842904,6.2451,160.13,160.08,7.49589025]
[1721229843395,6.2453,160.12,160.08,7.49589025]
[1721229843712,6.2453,160.12,160.08,6.2467]
[1721229843903,6.2453,160.12,160.07,21.8647]
[1721229844199,6.2453,160.12,160.08,51.2468]
[1721229844384,6.2449,160.13,160.09,6.2464]
[1721229844586,6.2449,160.13,160.09,7.49551844]
[1721229845186,6.2449,160.13,160.09,1.24911844]
[1721229846284,6.2445,160.14,160.09,15.6158]
[1721229846499,6.1109,160.18,160.1,45.0]
[1721229847000,6.2444,160.15,160.1,51.2459]
[1721229847375,6.2446,160.14,160.1,45.0]
[1721229847802,6.2446,160.14,160.1,51.246]
[1721229847984,6.2442,160.15,160.1,45.0]
[1721229848389,6.2446,160.14,160.1,45.0]
[1721229848876,6.2446,160.14,160.1,51.246]
[1721229849082,6.2453,160.12,160.1,45.0]
[1721229849378,6.245,160.13,160.09,6.2464]
[1721229851492,6.2453,160.12,160.08,6.2468]
[1721229851694,15.609,160.17,160.09,1.24909444]
[1721229851897,6.2434,160.17,160.1,16.86381433]
[1721229852086,6.58445474,160.19,160.1,15.6148]
[1721229852282,6.2447,160.14,160.1,15.6148]
[1721229852890,6.2447,160.14,160.1,21.8608]
[1721229853207,6.2447,160.14,160.1,15.6148]
[1721229853996,6.245,160.13,160.1,15.6148]
[1721229854187,6.245,160.13,160.09,51.2463]
[1721229854596,6.2445,160.14,160.1,6.246]
[1721229854790,6.2442,160.15,160.09,60.6159]
[1721229855104,6.2442,160.15,160.11,6.2455]
[1721229855311,6.58445474,160.19,160.11,15.6136]
[1721229855518,6.58445474,160.19,160.12,6.2452]
[1721229855519,0.34,160.18,160.12,6.2452]
[1721229855686,0.34,160.18,160.09,45.0]
[1721229856010,6.2448,160.14,160.1,6.246]
[1721229856206,15.0,160.14,160.1,6.246]
[1721229857633,15.0,160.13,160.1,6.246]
[1721229858520,0.34,160.18,160.09,45.0]
[1721229858521,15.0,160.12,160.09,6.2464]
[1721229859413,15.0,160.12,160.09,6.2463]
[1721229860202,15.0,160.11,160.09,6.2461]
[1721229860408,15.0,160.12,160.09,6.2461]
[1721229863324,15.0,160.12,160.08,15.6169]
[1721229863325,15.0,160.12,160.1,6.246]
[1721229863625,15.0,160.13,160.1,6.246]
[1721229863811,21.2446,160.14,160.1,6.246]
[1721229864119,15.0,160.14,160.11,6.2456]
[1721229864322,15.6087,160.17,160.12,16.24893289]
[1721229864323,15.0,160.17,160.12,16.24893289]
[1721229864520,15.0,160.17,160.12,15.0]
[1721229864725,21.2441,160.16,160.12,15.6129]
[1721229864932,21.2441,160.16,160.12,21.858]
[1721229865316,21.2441,160.16,160.13,6.2447]
[1721229865317,15.0,160.16,160.13,6.2447]
[1721229865533,15.0,160.16,160.12,21.8579]
[1721229865826,21.244,160.16,160.12,15.6129]
[1721229866123,21.244,160.16,160.12,23.10696822]
[1721229866327,21.244,160.16,160.12,15.6129]
[1721229866531,6.2442,160.15,160.12,15.6129]
[1721229867326,6.2442,160.15,160.11,15.0]
[1721229867523,6.2442,160.15,160.11,6.2455]
[1721229867725,21.2438,160.16,160.11,6.2455]
[1721229868115,21.2441,160.15,160.11,6.2455]
[1721229868723,21.2441,160.15,160.1,6.2459]
[1721229869327,21.2441,160.15,160.11,6.2456]
[1721229870314,15.0,160.15,160.11,6.2456]
[1721229871031,15.0,160.15,160.12,6.2452]
[1721229871340,15.0,160.16,160.14,6.2445]
[1721229871819,15.0,160.16,160.13,6.2449]
[1721229872429,21.2434,160.17,160.13,6.2449]
[1721229872927,15.0,160.18,160.14,7.49318014]
[1721229873736,21.243,160.18,160.14,6.2444]
[1721229874118,21.243,160.18,160.14,7.4931495]
[1721229875734,21.243,160.18,160.13,36.8566]
[1721229875921,6.2426,160.19,160.14,15.0]
[1721229876117,15.0,160.19,160.15,15.6097]
[1721229876318,15.0,160.21,160.16,60.0]
[1721229876636,15.0,160.21,160.17,21.8513]
[1721229877018,6.2417,160.22,160.18,6.2428]
[1721229877220,21.2417,160.22,160.18,6.2428]
[1721229877824,6.2417,160.22,160.18,6.2428]
[1721229878023,21.2417,160.22,160.18,6.2428]
[1721229879016,6.2417,160.22,160.18,21.2428]
[1721229879217,21.2417,160.22,160.18,6.2428]
[1721229879426,6.2417,160.22,160.18,21.2428]
[1721229880134,6.2417,160.22,160.19,1.24835311]
[1721229880325,6.2417,160.22,160.18,21.2428]
[1721229880739,21.2417,160.22,160.18,6.2428]
[1721229881120,6.2417,160.22,160.18,21.2428]
[1721229881721,6.2417,160.22,160.19,1.24835376]
[1721229881920,0.64,160.28,160.19,15.6062]
[1721229882244,0.64,160.28,160.22,21.2414]
[1721229882245,6.2399,160.26,160.22,21.2414]
[1721229882421,6.2403,160.25,160.19,15.6062]
[1721229882735,0.64,160.28,160.18,16.3724]
[1721229882736,15.64,160.28,160.23,15.0]
[1721229882918,6.2396,160.27,160.23,15.0]
[1721229883119,6.2399,160.26,160.23,15.0]
[1721229883341,0.64,160.28,160.24,15.0]
[1721229883520,6.2397,160.27,160.24,15.0]
[1721229883838,6.2397,160.27,160.23,15.0]
[1721229884135,15.64,160.28,160.22,15.0]
[1721229884136,6.2399,160.26,160.22,15.0]
[1721229884337,6.2399,160.26,160.21,21.8458]
[1721229884536,6.2399,160.26,160.22,60.0]
[1721229884936,6.2399,160.26,160.22,66.2412]
[1721229885242,21.2395,160.27,160.22,66.2412]
[1721229885430,15.0,160.27,160.22,66.2412]
[1721229886544,6.2398,160.26,160.22,66.2412]
[1721229887340,0.64,160.28,160.23,15.0]
[1721229887542,0.64,160.28,160.24,16.24793983]
[1721229887735,0.64,160.28,160.24,15.0]
[1721229887923,21.8794,160.28,160.23,15.0]
[1721229888123,6.2395,160.27,160.23,15.0]
[1721229888739,21.8792,160.28,160.23,21.2407]
[1721229889043,6.2395,160.27,160.23,21.2409]
[1721229889428,21.8791,160.28,160.24,6.2406]
[1721229890040,15.64,160.28,160.23,15.0]
[1721229890239,6.2395,160.27,160.23,21.2408]
[1721229890542,21.8792,160.28,160.24,21.2405]
[1721229891129,15.64,160.28,160.25,6.5514]
[1721229891332,0.64,160.28,160.27,15.0]
[1721229891646,0.64,160.28,160.27,16.24773897]
[1721229891847,0.64,160.28,160.27,15.0]
[1721229894345,0.64,160.28,160.26,36.839]
[1721229895142,0.64,160.28,160.27,15.0]
[1721229895645,0.64,160.28,160.26,36.839]
[1721229896030,0.64,160.28,160.26,15.5993]
[1721229896234,6.8792,160.28,160.25,15.0]
[1721229896448,0.64,160.28,160.25,16.24794994]
[1721229896637,0.64,160.28,160.26,15.0]
[1721229897351,0.64,160.28,160.25,21.2399]
[1721229898154,0.64,160.28,160.25,6.2399]
[1721229898351,15.0,160.26,160.2,6.2419]
[1721229898549,15.0,160.23,160.2,6.2419]
[1721229898758,6.2403,160.25,160.21,6.2416]
[1721229898935,15.0,160.24,160.18,21.2426]
[1721229899136,6.2425,160.2,160.16,15.0]
[1721229899455,21.2426,160.19,160.14,53.3055]
[1721229899652,15.0,160.18,160.14,16.4506]
[1721229899849,15.0,160.18,160.15,6.2439]
[1721229900050,15.6039,160.22,160.14,31.4506]
[1721229900252,21.2424,160.2,160.15,21.244]
[1721229900435,15.0,160.2,160.16,6.2437]
[1721229900769,15.0,160.21,160.17,6.2432]
[1721229900955,21.2419,160.21,160.17,6.2432]
[1721229901131,21.2419,160.21,160.16,36.8522]
[1721229901337,15.0,160.2,160.16,21.8522]
[1721229901530,15.0,160.2,160.17,6.2432]
[1721229901736,21.2411,160.23,160.18,16.24844961]
[1721229901951,15.0,160.23,160.18,16.24844961]
[1721229902130,15.0,160.24,160.2,6.2421]
[1721229902335,6.2403,160.25,160.2,6.2421]
[1721229902551,6.2408,160.24,160.19,6.2424]
[1721229902739,6.2408,160.24,160.2,6.2421]
[1721229903437,6.2408,160.24,160.19,6.2425]
[1721229904256,22.134,160.29,160.18,15.6068]
[1721229904257,6.2403,160.25,160.18,15.6068]
[1721229904451,6.2398,160.27,160.21,6.2415]
[1721229904645,6.2399,160.26,160.21,6.2415]
[1721229905454,6.2394,160.27,160.23,6.2408]
[1721229905633,6.2394,160.27,160.21,6.2414]
[1721229905839,0.64,160.28,160.22,45.0]
[1721229905840,6.2398,160.26,160.22,45.0]
[1721229906046,6.2398,160.26,160.22,51.2413]
[1721229906446,6.2398,160.26,160.21,6.2417]
[1721229906849,6.2402,160.25,160.21,6.2417]
[1721229907048,0.64,160.28,160.22,6.2413]
[1721229907358,6.2395,160.27,160.22,6.2413]
[1721229907950,6.2398,160.26,160.22,6.2413]
[1721229908551,6.2406,160.25,160.2,15.6048]
[1721229908959,6.2407,160.24,160.2,15.6048]
[1721229909156,16.238,160.28,160.14,46.4106]
[1721229909157,6.2418,160.21,160.17,15.608]
[1721229909963,6.2418,160.21,160.17,21.8511]
[1721229910549,15.6004,160.26,160.17,15.608]
[1721229910550,6.2422,160.2,160.17,15.608]
[1721229910757,6.2414,160.22,160.18,6.2427]
[1721229910939,6.2411,160.23,160.19,6.2425]
[1721229911140,22.0478,160.25,160.17,21.8509]
[1721229911352,0.34,160.24,160.17,15.608]
[1721229911557,6.2418,160.21,160.17,21.8512]
[1721229911866,6.244,160.16,160.12,6.2452]
[1721229912062,15.6059,160.2,160.1,21.329]
[1721229912250,36.3897,160.17,160.08,15.6167]
[1721229912453,36.3897,160.17,160.06,6.2476]
[1721229912454,0.34,160.16,160.06,6.2476]
[1721229912647,6.2458,160.11,160.06,6.2476]
[1721229912849,15.6128,160.13,160.05,6.2479]
[1721229913044,0.17,160.12,160.04,21.8684]
[1721229913249,6.246,160.11,160.04,15.6201]
[1721229913471,6.2458,160.11,160.06,6.2476]
[1721229913667,6.2461,160.1,160.06,6.2476]
[1721229913853,6.2461,160.1,160.05,6.2479]
[1721229914254,6.2457,160.11,160.06,6.2476]
[1721229914652,6.2461,160.1,160.05,6.2479]
[1721229914850,6.2466,160.09,160.04,21.8684]
[1721229915072,6.247,160.08,160.04,15.6201]
[1721229915570,6.2473,160.07,160.02,6.2491]
[1721229915877,6.2474,160.07,160.02,6.2491]
[1721229916061,0.17,160.06,160.02,6.2491]
[1721229916866,6.4169,160.08,160.03,6.2486]
[1721229917172,6.2476,160.06,160.01,21.8733]
[1721229917380,0.17,160.09,160.01,15.6238]
[1721229917676,6.4165,160.09,160.04,6.2483]
[1721229917860,6.2469,160.08,160.03,21.8701]
[1721229918058,6.2473,160.07,160.03,15.6214]
[1721229918266,0.17,160.09,160.03,15.6214]
[1721229918582,6.5861,160.1,160.05,6.2478]
[1721229918774,6.2465,160.09,160.04,6.2483]
[1721229918971,6.247,160.08,160.04,6.2483]
[1721229919275,6.247,160.08,160.03,21.8701]
[1721229919769,0.17,160.1,160.03,15.6214]
[1721229919977,6.2473,160.07,160.03,21.8702]
[1721229920360,6.2469,160.08,160.03,21.8702]
[1721229920566,6.2473,160.07,160.03,21.8702]
[1721229920863,6.2468,160.08,160.04,6.2483]
[1721229921259,6.2465,160.09,160.04,6.2483]
[1721229921450,6.2469,160.08,160.04,6.2483]
[1721229921656,6.2465,160.09,160.05,6.248]
[1721229921972,6.247,160.08,160.03,21.8701]
[1721229922365,6.2463,160.1,160.03,15.6214]
[1721229922869,6.2463,160.1,160.05,6.2477]
[1721229923080,6.2464,160.09,160.05,6.2477]
[1721229923460,6.2461,160.1,160.05,6.2477]
[1721229923859,6.2466,160.09,160.04,6.2483]
[1721229924187,6.2469,160.08,160.04,6.2483]
[1721229924889,15.6127,160.13,160.05,6.2479]
[1721229925069,6.2462,160.1,160.06,6.2476]
[1721229925477,6.2462,160.1,160.06,6.2475]
[1721229925816,29.96,160.14,160.07,15.6177]
[1721229925960,15.61,160.16,160.08,1.24919487]
[1721229926590,6.2456,160.12,160.07,21.8648]
[1721229926773,52.0006,160.17,160.09,15.6157]
[1721229926982,15.6066,160.19,160.1,1.2490635]
[1721229927288,15.6088,160.17,160.06,32.0974]
[1721229927476,15.6107,160.15,160.06,32.0974]
[1721229927782,6.2465,160.09,160.06,32.0974]
[1721229928093,6.2472,160.07,160.04,6.2195]
[1721229928263,15.6149,160.11,160.02,30.7825]
[1721229928880,6.2471,160.08,160.03,6.2487]
[1721229929053,15.6149,160.11,160.04,6.2482]
[1721229929257,0.34,160.12,160.02,30.7825]
[1721229929457,0.34,160.13,160.02,30.7825]
[1721229929963,6.2467,160.09,160.05,6.2479]
[1721229930679,6.2467,160.09,160.04,21.869]
[1721229931179,6.2468,160.08,160.04,21.869]
[1721229931380,6.2466,160.09,160.05,6.2479]
[1721229932360,6.2461,160.1,160.06,6.2476]
[1721229932570,15.6119,160.14,160.08,6.2468]
[1721229932778,6.2453,160.12,160.08,6.2468]
[1721229933184,6.2453,160.12,160.07,7.49641951]
[1721229933372,6.2458,160.11,160.08,1.24920955]
[1721229933780,6.2454,160.12,160.08,1.24920955]
[1721229934381,6.2457,160.11,160.06,21.8661]
[1721229934681,6.2457,160.11,160.07,45.0]
[1721229935377,6.2461,160.1,160.07,45.0]
[1721229935691,6.2453,160.12,160.07,52.49624074]
[1721229935883,6.2453,160.12,160.08,6.2467]
[1721229936085,15.6107,160.15,160.09,6.2464]
[1721229936086,6.2449,160.13,160.09,6.2464]
[1721229936583,6.2441,160.15,160.11,6.2456]
[1721229936969,6.2438,160.16,160.12,7.49414006]
[1721229937359,6.2442,160.15,160.1,37.5756]
[1721229937680,38.5248,160.22,160.12,15.6124]
[1721229937891,38.5248,160.22,160.13,45.0]
[1721229938179,6.244,160.16,160.12,15.6124]
[1721229938382,15.6059,160.2,160.12,15.6124]
[1721229939179,15.6059,160.2,160.1,15.7151]
[1721229939383,6.2442,160.15,160.11,6.2454]
[1721229939685,6.2445,160.14,160.1,21.961]
[1721229939873,0.34,160.19,160.1,15.7151]
[1721229940062,0.34,160.19,160.06,31.5279]
[1721229940063,6.2457,160.11,160.06,31.5279]
[1721229940265,6.2461,160.1,160.06,37.7754]
[1721229940582,29.96,160.17,160.06,31.5279]
[1721229940583,6.2465,160.09,160.06,31.5279]
[1721229941169,6.2461,160.1,160.06,37.7755]
[1721229941765,6.2465,160.09,160.06,31.5279]
[1721229941965,6.2461,160.1,160.06,22.1568]
[1721229942286,6.2465,160.09,160.06,15.9093]
[1721229942475,6.2469,160.08,160.04,12.6896]
[1721229943086,6.2469,160.08,160.04,6.2483]
[1721229943777,6.2464,160.1,160.03,15.6214]
[1721229944090,6.2464,160.1,160.05,21.8676]
[1721229945194,6.2471,160.08,160.03,6.2487]
[1721229945490,6.2472,160.07,160.03,6.2487]
[1721229945989,6.2469,160.08,160.03,6.2487]
[1721229946172,6.2469,160.08,160.04,6.2484]
[1721229946374,6.2469,160.08,160.03,6.2487]
[1721229947271,6.2473,160.07,160.03,6.2488]
[1721229947472,6.247,160.08,160.03,6.2488]
[1721229947795,6.2466,160.09,160.04,15.6206]
[1721229948190,6.2466,160.09,160.05,6.2478]
[1721229948493,6.2469,160.08,160.04,15.6206]
[1721229948787,6.2469,160.08,160.04,21.8686]
[1721229948991,6.2457,160.11,160.07,6.2469]
[1721229949195,6.2457,160.11,160.07,7.49620903]
[1721229949994,6.2465,160.09,160.06,15.6188]
[1721229950200,6.2462,160.1,160.06,15.6188]
[1721229950495,6.2457,160.11,160.07,6.2469]
[1721229951078,6.2457,160.11,160.06,21.8663]
[1721229951277,15.7815,160.14,160.06,15.6188]
[1721229951482,0.17,160.13,160.06,15.6188]
[1721229951790,6.246,160.11,160.07,6.2472]
[1721229952172,6.2461,160.1,160.06,21.8663]
[1721229952788,6.2457,160.11,160.07,6.2472]
[1721229953091,6.2457,160.11,160.07,7.49649957]
[1721229953288,6.2461,160.1,160.06,21.8663]
[1721229953502,6.2465,160.09,160.06,15.6188]
[1721229953993,6.2462,160.1,160.06,23.11577967]
[1721229954568,6.2462,160.1,160.06,15.6188]
[1721229954770,6.2462,160.1,160.06,16.86818048]
[1721229955369,6.2461,160.1,160.06,23.11568966]
[1721229955769,6.2457,160.11,160.07,6.2472]
[1721229956501,6.2461,160.1,160.07,1.24929525]
[1721229956800,6.2461,160.1,160.06,21.8663]
[1721229956985,6.2461,160.1,160.07,1.24928255]
[1721229957293,6.2466,160.09,160.05,6.248]
[1721229957716,6.2469,160.08,160.04,6.2483]
[1721229957885,53.1837,160.23,160.2,2752.4626]
[1721229958195,108.74993908,160.21,160.2,2659.296]
[1721229959193,161.80523908,160.21,160.2,2659.296]
[1721229960107,162.14523908,160.21,160.2,2659.296]
[1721229960479,199.71523908,160.21,160.2,2658.936]
[1721229960704,205.97323908,160.21,160.2,2262.8622]
[1721229960901,208.67549697,160.21,160.2,2241.5022]
[1721229961101,208.67549697,160.21,160.2,2234.3822]
[1721229961307,238.63549697,160.21,160.2,2045.9222]
[1721229961504,238.63549697,160.21,160.2,2025.4192]
[1721229961707,507.53549697,160.21,160.2,1945.5792]
[1721229961884,507.53549697,160.21,160.2,1888.91808809]
[1721229962206,497.53549697,160.21,160.2,1810.59808809]
[1721229962410,467.57549697,160.21,160.2,1767.87808809]
[1721229962708,364.66609805,160.21,160.2,1760.75808809]
[1721229963013,352.48086554,160.21,160.2,1753.63808809]
[1721229963193,352.48047196,160.21,160.2,1753.63808809]
[1721229963385,349.77800657,160.21,160.2,1753.63808809]
[1721229964209,341.9153,160.21,160.2,1753.63808809]
[1721229964386,311.9553,160.21,160.2,1753.63808809]
[1721229964704,21.8463,160.21,160.2,1753.63808809]
[1721229966489,22.1863,160.21,160.2,1753.63808809]
[1721229969312,21.8463,160.21,160.2,1753.63808809]
[1721229970500,6.2418,160.21,160.2,1753.63808809]
[1721229970696,6.2414,160.22,160.2,1753.63808809]
[1721229970900,6.2414,160.22,160.21,6.3825]
[1721229971095,6.2411,160.23,160.21,6.3825]
[1721229972814,6.2414,160.22,160.21,6.3825]
[1721229973730,0.64,160.28,160.21,6.3825]
[1721229974020,0.64,160.28,160.22,45.0]
[1721229974021,6.241,160.23,160.22,45.0]
[1721229974718,15.5991,160.27,160.21,6.3825]
[1721229974895,15.5991,160.27,160.25,1747.39678809]
[1721229975798,0.64,160.28,160.25,1747.39678809]
[1721229976000,6.2398,160.26,160.25,1747.39678809]
[1721229976808,6.2395,160.27,160.26,16.308]
[1721229977621,6.8791,160.28,160.26,61.308]
[1721229977999,6.2394,160.27,160.26,61.308]
[1721229978196,6.2394,160.27,160.26,16.308]
[1721229981312,6.2398,160.26,160.25,1747.39678809]
[1721229983920,6.2395,160.27,160.25,1747.39678809]
[1721229984312,6.2398,160.26,160.25,1747.39678809]
[1721229989106,6.5798,160.26,160.25,1747.39678809]
[1721229989320,29.96,160.31,160.3,1693.38408809]
[1721229989610,95.13,160.31,160.3,1693.38408809]
[1721229990521,116.9626,160.31,160.3,1693.38408809]
[1721229991512,117.1326,160.31,160.3,1693.38408809]
[1721229997119,51.7926,160.31,160.3,1693.38408809]
[1721229997321,21.8326,160.31,160.3,1693.38408809]
[1721229999636,22.1726,160.31,160.3,1693.38408809]
[1721229999835,67.1726,160.31,160.3,1693.38408809]
[1721230000630,22.1726,160.31,160.3,1693.38408809]
[1721230003335,67.1726,160.31,160.3,1693.38408809]
[1721230004539,87.1726,160.31,160.3,1693.20408809]
[1721230004739,93.82708315,160.31,160.3,1404.15408809]
[1721230004944,139.20978972,160.31,160.3,1404.15408809]
[1721230005152,144.94049749,160.31,160.3,1321.50408809]
[1721230005318,403.84049749,160.31,160.3,1321.50408809]
[1721230006435,410.09849749,160.31,160.3,1321.50408809]
[1721230006643,410.26849749,160.31,160.3,1321.50408809]
[1721230008347,410.26849749,160.31,160.3,1032.63408809]
[1721230009450,404.01049749,160.31,160.3,1032.63408809]
[1721230009637,406.71195309,160.31,160.3,1032.63408809]
[1721230009952,404.01049749,160.31,160.3,1032.63408809]
[1721230010131,412.96997426,160.31,160.3,1029.63408809]
[1721230010327,412.96997426,160.31,160.3,1004.45408809]
[1721230010653,412.96997426,160.31,160.3,974.27408809]
[1721230010847,410.26849749,160.31,160.3,974.27408809]
[1721230011151,412.97048619,160.31,160.3,609.87408809]
[1721230012052,412.97048619,160.31,160.3,603.62068809]
[1721230013632,444.765103,160.31,160.3,603.62068809]
[1721230016065,412.97048619,160.31,160.3,603.62068809]
[1721230016235,367.63048619,160.31,160.3,603.62068809]
[1721230016954,364.92849749,160.31,160.3,603.62068809]
[1721230017138,367.63022558,160.31,160.3,603.62068809]
[1721230017336,364.92849749,160.31,160.3,603.62068809]
[1721230017540,367.8001668,160.31,160.3,603.62068809]
[1721230017857,410.26849749,160.31,160.3,603.62068809]
[1721230018045,424.22718732,160.31,160.3,603.62068809]
[1721230018647,410.26849749,160.31,160.3,603.62068809]
[1721230018853,424.22719831,160.31,160.3,603.62068809]
[1721230019042,404.22719831,160.31,160.3,603.62068809]
[1721230019758,401.52551428,160.31,160.3,603.62068809]
[1721230019948,318.66551428,160.31,160.3,603.62068809]
[1721230020151,293.87317549,160.31,160.3,603.62068809]
[1721230020356,305.12802238,160.31,160.3,603.62068809]
[1721230021257,292.57283146,160.31,160.3,603.62068809]
[1721230021458,281.31798457,160.31,160.3,603.62068809]
[1721230022458,288.14246772,160.31,160.3,603.62068809]
[1721230022650,353.48246772,160.31,160.3,603.62068809]
[1721230022862,419.55286135,160.31,160.3,578.26068809]
[1721230023039,425.81086135,160.31,160.3,502.73068809]
[1721230023236,432.7220883,160.31,160.3,501.55088809]
[1721230023435,432.7220883,160.31,160.3,496.4676881]
[1721230023865,455.23633134,160.31,160.3,496.4676881]
[1721230025257,455.24149436,160.31,160.3,496.4676881]
[1721230025564,455.2412957,160.31,160.3,496.4676881]
[1721230025858,455.24084801,160.31,160.3,496.4676881]
[1721230026860,448.98284801,160.31,160.3,496.4676881]
[1721230027161,455.24084801,160.31,160.3,496.4676881]
[1721230027544,432.72639148,160.31,160.3,496.4676881]
[1721230028358,432.72569346,160.31,160.3,496.4676881]
[1721230028554,455.23902414,160.31,160.3,496.4676881]
[1721230028767,432.72569346,160.31,160.3,496.4676881]
[1721230028940,361.12769346,160.31,160.3,496.4676881]
[1721230029136,310.88609378,160.31,160.3,496.4676881]
[1721230029341,303.60877178,160.31,160.3,496.4676881]
[1721230029939,292.57464991,160.31,160.3,496.4676881]
[1721230030674,280.7326,160.31,160.3,517.6801881]
[1721230034066,22.1726,160.31,160.3,517.6801881]
[1721230034644,22.0026,160.31,160.3,517.6801881]
[1721230034840,5.166,160.31,160.3,517.6801881]
[1721230035041,31.1873,160.33,160.3,517.6801881]
[1721230035243,36.91370777,160.35,160.3,517.6801881]
[1721230036057,15.592,160.34,160.3,517.6801881]
[1721230036570,0.17,160.33,160.3,517.6801881]
[1721230036869,0.34,160.33,160.3,517.6801881]
[1721230037173,6.2379,160.31,160.3,517.6801881]
[1721230037369,15.5944,160.32,160.3,517.6801881]
[1721230037548,38.00588315,160.36,160.31,22.5541]
[1721230037751,0.8280178,160.39,160.31,22.5541]
[1721230039159,6.2375,160.32,160.31,22.5541]
[1721230039346,15.5902,160.36,160.31,22.5541]
[1721230040679,0.17,160.37,160.31,22.5541]
[1721230040968,0.17,160.38,160.31,22.5541]
[1721230041367,15.5897,160.37,160.31,22.5541]
[1721230041550,0.17,160.36,160.31,22.5541]
[1721230044167,6.2375,160.32,160.31,22.5541]
[1721230044568,15.5914,160.35,160.31,22.5541]
[1721230044875,0.17,160.36,160.31,22.5541]
[1721230045253,0.8280178,160.39,160.32,45.0]
[1721230045453,0.8280178,160.39,160.31,22.5541]